[Event "Titled Tuesday Blitz November 30 2021"]
[White "Macovei, Andrei"]
[Black "Kovalev, Vladislav"]
[WhiteFideId "13904680"]
[BlackFideId "13504398"]
[WhiteElo "2389"]
[BlackElo "2573"]
[Result "1-0"]
[Round "05"]
[TimeControl "180+1"]
[Date "2021.11.30"]
[WhiteClock "0:00:47"]
[BlackClock "0:00:02"]

1. e4 {[%clk 0:03:00]}  e5 {[%clk 0:01:18]} 2. Nf3 {[%clk 0:02:50]}  Nc6 {[%clk 0:01:18]} 3. Bc4 {[%clk 0:02:50]}  Nf6 {[%clk 0:01:18]} 4. d3 {[%clk 0:02:50]}  Bc5 {[%clk 0:01:19]} 5. c3 {[%clk 0:02:48]}  d6 {[%clk 0:01:19]} 6. a4 {[%clk 0:02:47]}  a6 {[%clk 0:01:20]} 7. O-O {[%clk 0:02:46]}  Ba7 {[%clk 0:01:20]} 8. h3 {[%clk 0:02:45]}  h6 {[%clk 0:01:21]} 9. Re1 {[%clk 0:02:44]}  Qe7 {[%clk 0:01:18]} 10. d4 {[%clk 0:02:41]}  O-O {[%clk 0:01:18]} 11. Na3 {[%clk 0:02:29]}  Re8 {[%clk 0:01:17]} 12. Nc2 {[%clk 0:02:26]}  exd4 {[%clk 0:00:58]} 13. Ncxd4 {[%clk 0:02:16]}  Nxd4 {[%clk 0:00:56]} 14. cxd4 {[%clk 0:01:59]}  Nxe4 {[%clk 0:00:26]} 15. Bd5 {[%clk 0:01:53]}  Bf5 {[%clk 0:00:26]} 16. Bxb7 {[%clk 0:01:38]}  Rab8 {[%clk 0:00:25]} 17. Bc6 {[%clk 0:01:38]}  Qf6 {[%clk 0:00:18]} 18. Bxe8 {[%clk 0:01:36]}  Rxe8 {[%clk 0:00:19]} 19. Be3 {[%clk 0:01:35]}  Bg6 {[%clk 0:00:17]} 20. Rc1 {[%clk 0:01:29]}  Bb6 {[%clk 0:00:14]} 21. b4 {[%clk 0:01:28]}  a5 {[%clk 0:00:14]} 22. Qb3 {[%clk 0:01:25]}  Bh5 {[%clk 0:00:12]} 23. Nd2 {[%clk 0:01:19]}  Nxd2 {[%clk 0:00:12]} 24. Bxd2 {[%clk 0:01:20]}  Rxe1+ {[%clk 0:00:12]} 25. Rxe1 {[%clk 0:01:21]}  axb4 {[%clk 0:00:12]} 26. Qxb4 {[%clk 0:01:16]}  Bxd4 {[%clk 0:00:12]} 27. Be3 {[%clk 0:01:14]}  Bc3 {[%clk 0:00:11]} 28. Qb8+ {[%clk 0:01:14]}  Kh7 {[%clk 0:00:12]} 29. Rc1 {[%clk 0:01:15]}  c5 {[%clk 0:00:10]} 30. Qb6 {[%clk 0:01:09]}  Be2 {[%clk 0:00:08]} 31. a5 {[%clk 0:01:06]}  c4 {[%clk 0:00:05]} 32. a6 {[%clk 0:01:03]}  Bb2 {[%clk 0:00:06]} 33. a7 {[%clk 0:00:58]}  Bxc1 {[%clk 0:00:03]} 34. a8=Q {[%clk 0:00:50]}  Bb2 {[%clk 0:00:01]} 35. Qe4+ {[%clk 0:00:48]}  g6 {[%clk 0:00:02]} 36. Bd4 {[%clk 0:00:47]} 1-0


[Site "https://www.chess.com"]

[Event "Titled Tuesday Blitz November 30 2021"]
[White "Pichot, Alan"]
[Black "Arabidze, Meri"]
[WhiteFideId "110973"]
[BlackFideId "13604040"]
[WhiteElo "2600"]
[BlackElo "2432"]
[Result "1/2-1/2"]
[Round "05"]
[TimeControl "180+1"]
[Date "2021.11.30"]
[WhiteClock "0:00:02"]
[BlackClock "0:00:07"]

1. e4 {[%clk 0:03:00]}  c5 {[%clk 0:02:59]} 2. Nf3 {[%clk 0:03:00]}  e6 {[%clk 0:03:00]} 3. d4 {[%clk 0:03:00]}  cxd4 {[%clk 0:03:01]} 4. Nxd4 {[%clk 0:03:00]}  Nc6 {[%clk 0:03:01]} 5. Nc3 {[%clk 0:03:00]}  a6 {[%clk 0:03:01]} 6. Nxc6 {[%clk 0:02:57]}  bxc6 {[%clk 0:03:02]} 7. Bd3 {[%clk 0:02:58]}  d5 {[%clk 0:03:02]} 8. O-O {[%clk 0:02:57]}  Nf6 {[%clk 0:03:02]} 9. Qe2 {[%clk 0:02:56]}  Be7 {[%clk 0:03:01]} 10. Bd2 {[%clk 0:02:56]}  O-O {[%clk 0:03:00]} 11. Rae1 {[%clk 0:02:49]}  Bb7 {[%clk 0:02:58]} 12. f4 {[%clk 0:02:48]}  Re8 {[%clk 0:02:50]} 13. e5 {[%clk 0:02:38]}  Nd7 {[%clk 0:02:49]} 14. Na4 {[%clk 0:02:38]}  c5 {[%clk 0:02:46]} 15. c4 {[%clk 0:02:38]}  d4 {[%clk 0:02:46]} 16. b3 {[%clk 0:02:35]}  Bc6 {[%clk 0:02:43]} 17. Be4 {[%clk 0:02:30]}  Qc7 {[%clk 0:02:43]} 18. Nb2 {[%clk 0:02:24]}  a5 {[%clk 0:02:41]} 19. Nd3 {[%clk 0:02:17]}  a4 {[%clk 0:02:38]} 20. f5 {[%clk 0:02:13]}  exf5 {[%clk 0:02:30]} 21. Rxf5 {[%clk 0:02:13]}  Nf8 {[%clk 0:02:23]} 22. Qf3 {[%clk 0:02:08]}  Bxe4 {[%clk 0:02:21]} 23. Rxe4 {[%clk 0:02:04]}  axb3 {[%clk 0:02:19]} 24. axb3 {[%clk 0:02:05]}  Ra1+ {[%clk 0:02:09]} 25. Re1 {[%clk 0:01:33]}  Rxe1+ {[%clk 0:02:07]} 26. Bxe1 {[%clk 0:01:34]}  Ng6 {[%clk 0:02:02]} 27. Rxf7 {[%clk 0:01:11]}  Nxe5 {[%clk 0:01:55]} 28. Qf4 {[%clk 0:00:54]}  Nxd3 {[%clk 0:01:22]} 29. Qxc7 {[%clk 0:00:34]}  Kxf7 {[%clk 0:01:22]} 30. Bh4 {[%clk 0:00:29]}  h6 {[%clk 0:01:13]} 31. h3 {[%clk 0:00:23]}  g5 {[%clk 0:01:10]} 32. Bg3 {[%clk 0:00:23]}  Rd8 {[%clk 0:01:00]} 33. Qc6 {[%clk 0:00:21]}  Nf4 {[%clk 0:00:36]} 34. Qxh6 {[%clk 0:00:13]}  d3 {[%clk 0:00:36]} 35. Qh7+ {[%clk 0:00:13]}  Ke8 {[%clk 0:00:31]} 36. Be1 {[%clk 0:00:03]}  Kd7 {[%clk 0:00:18]} 37. g3 {[%clk 0:00:02]}  Ne2+ {[%clk 0:00:18]} 38. Kg2 {[%clk 0:00:03]}  Ke8 {[%clk 0:00:13]} 39. Qg6+ {[%clk 0:00:02]}  Kf8 {[%clk 0:00:13]} 40. Bd2 {[%clk 0:00:03]}  Rd6 {[%clk 0:00:12]} 41. Qf5+ {[%clk 0:00:04]}  Ke8 {[%clk 0:00:10]} 42. Qe4 {[%clk 0:00:03]}  Kd7 {[%clk 0:00:09]} 43. Qf5+ {[%clk 0:00:03]}  Ke8 {[%clk 0:00:09]} 44. Qh7 {[%clk 0:00:02]}  Kd8 {[%clk 0:00:09]} 45. Kf3 {[%clk 0:00:02]}  Rd7 {[%clk 0:00:09]} 46. Kg4 {[%clk 0:00:02]}  Rd6 {[%clk 0:00:05]} 47. Qg8+ {[%clk 0:00:02]}  Kd7 {[%clk 0:00:05]} 48. Qf7 {[%clk 0:00:03]}  Rf6 {[%clk 0:00:05]} 49. Qd5+ {[%clk 0:00:02]}  Rd6 {[%clk 0:00:06]} 50. Qf3 {[%clk 0:00:02]}  Kd8 {[%clk 0:00:05]} 51. Qf5 {[%clk 0:00:01]}  Ke8 {[%clk 0:00:05]} 52. Qh7 {[%clk 0:00:01]}  Kd8 {[%clk 0:00:05]} 53. Qg8+ {[%clk 0:00:01]}  Kd7 {[%clk 0:00:05]} 54. Kf3 {[%clk 0:00:02]}  Rf6+ {[%clk 0:00:05]} 55. Ke4 {[%clk 0:00:02]}  Rd6 {[%clk 0:00:06]} 56. Kf3 {[%clk 0:00:02]}  Nd4+ {[%clk 0:00:06]} 57. Kg4 {[%clk 0:00:02]}  Ne2 {[%clk 0:00:07]} 1/2-1/2


[Site "https://www.chess.com"]

[Event "Titled Tuesday Blitz November 30 2021"]
[White "Sanal, Vahap"]
[Black "Gaehwiler, Gabriel"]
[WhiteFideId "6300545"]
[BlackFideId "1314530"]
[WhiteElo "2499"]
[BlackElo "2320"]
[Result "0-1"]
[Round "05"]
[TimeControl "180+1"]
[Date "2021.11.30"]
[WhiteClock "0:00:14"]
[BlackClock "0:00:05"]

1. Nf3 {[%clk 0:02:58]}  Nf6 {[%clk 0:02:55]} 2. b3 {[%clk 0:02:58]}  b6 {[%clk 0:02:52]} 3. Bb2 {[%clk 0:02:57]}  Bb7 {[%clk 0:02:53]} 4. g3 {[%clk 0:02:54]}  g6 {[%clk 0:02:53]} 5. Bg2 {[%clk 0:02:55]}  Bg7 {[%clk 0:02:54]} 6. O-O {[%clk 0:02:55]}  O-O {[%clk 0:02:54]} 7. c4 {[%clk 0:02:55]}  c5 {[%clk 0:02:53]} 8. Nc3 {[%clk 0:02:50]}  d5 {[%clk 0:02:47]} 9. Ne5 {[%clk 0:02:46]}  Nbd7 {[%clk 0:02:34]} 10. Nxd7 {[%clk 0:02:34]}  Qxd7 {[%clk 0:02:34]} 11. cxd5 {[%clk 0:02:28]}  Nxd5 {[%clk 0:02:34]} 12. Rb1 {[%clk 0:02:18]}  Rad8 {[%clk 0:02:30]} 13. Nxd5 {[%clk 0:02:13]}  Bxd5 {[%clk 0:02:29]} 14. Bxg7 {[%clk 0:02:12]}  Kxg7 {[%clk 0:02:29]} 15. d3 {[%clk 0:02:12]}  Bxg2 {[%clk 0:02:27]} 16. Kxg2 {[%clk 0:02:12]}  Qd5+ {[%clk 0:02:28]} 17. Kg1 {[%clk 0:02:12]}  Qd4 {[%clk 0:02:22]} 18. Rc1 {[%clk 0:02:11]}  Rd5 {[%clk 0:02:22]} 19. Rc4 {[%clk 0:02:09]}  Qf6 {[%clk 0:02:22]} 20. Qa1 {[%clk 0:02:00]}  Rfd8 {[%clk 0:02:18]} 21. Qxf6+ {[%clk 0:01:54]}  Kxf6 {[%clk 0:02:19]} 22. Rfc1 {[%clk 0:01:53]}  Rd4 {[%clk 0:02:15]} 23. Kg2 {[%clk 0:01:50]}  e5 {[%clk 0:02:09]} 24. Kf3 {[%clk 0:01:43]}  Ke6 {[%clk 0:02:08]} 25. Rxd4 {[%clk 0:01:41]}  exd4 {[%clk 0:01:58]} 26. Rc4 {[%clk 0:01:38]}  a5 {[%clk 0:01:49]} 27. a4 {[%clk 0:01:31]}  Kd5 {[%clk 0:01:46]} 28. e4+ {[%clk 0:01:29]}  Ke6 {[%clk 0:01:18]} 29. Ke2 {[%clk 0:01:27]}  Rb8 {[%clk 0:01:10]} 30. f4 {[%clk 0:01:24]}  f6 {[%clk 0:01:02]} 31. Kd2 {[%clk 0:01:24]}  Kd6 {[%clk 0:01:01]} 32. Rc1 {[%clk 0:01:24]}  Re8 {[%clk 0:00:59]} 33. Rf1 {[%clk 0:01:21]}  Re7 {[%clk 0:00:58]} 34. h4 {[%clk 0:01:16]}  Rg7 {[%clk 0:00:55]} 35. Ke2 {[%clk 0:01:16]}  Ke6 {[%clk 0:00:55]} 36. Kf3 {[%clk 0:01:13]}  Rb7 {[%clk 0:00:52]} 37. Rc1 {[%clk 0:01:12]}  Kd6 {[%clk 0:00:51]} 38. Ra1 {[%clk 0:00:58]}  Ke6 {[%clk 0:00:44]} 39. g4 {[%clk 0:00:57]}  h5 {[%clk 0:00:37]} 40. f5+ {[%clk 0:00:52]}  gxf5 {[%clk 0:00:27]} 41. exf5+ {[%clk 0:00:46]}  Kf7 {[%clk 0:00:25]} 42. g5 {[%clk 0:00:45]}  Re7 {[%clk 0:00:24]} 43. Kf4 {[%clk 0:00:39]}  Re3 {[%clk 0:00:23]} 44. Rg1 {[%clk 0:00:35]}  Rxd3 {[%clk 0:00:19]} 45. g6+ {[%clk 0:00:33]}  Kg7 {[%clk 0:00:18]} 46. Re1 {[%clk 0:00:34]}  Rh3 {[%clk 0:00:12]} 47. Re7+ {[%clk 0:00:33]}  Kg8 {[%clk 0:00:13]} 48. Re6 {[%clk 0:00:33]}  Rxh4+ {[%clk 0:00:12]} 49. Kg3 {[%clk 0:00:33]}  Rg4+ {[%clk 0:00:12]} 50. Kf3 {[%clk 0:00:33]}  Kg7 {[%clk 0:00:13]} 51. Rxb6 {[%clk 0:00:27]}  Rg5 {[%clk 0:00:12]} 52. Rb7+ {[%clk 0:00:27]}  Kg8 {[%clk 0:00:13]} 53. Ke4 {[%clk 0:00:25]}  h4 {[%clk 0:00:11]} 54. Rh7 {[%clk 0:00:26]}  Rg4+ {[%clk 0:00:10]} 55. Kf3 {[%clk 0:00:23]}  Rg5 {[%clk 0:00:09]} 56. Kf4 {[%clk 0:00:22]}  Rg3 {[%clk 0:00:06]} 57. Rxh4 {[%clk 0:00:20]}  Rxb3 {[%clk 0:00:06]} 58. Rh7 {[%clk 0:00:18]}  Re3 {[%clk 0:00:06]} 59. Rc7 {[%clk 0:00:17]}  Re5 {[%clk 0:00:06]} 60. Rf7 {[%clk 0:00:17]}  d3 {[%clk 0:00:06]} 61. Rxf6 {[%clk 0:00:18]}  Rd5 {[%clk 0:00:06]} 62. Re6 {[%clk 0:00:13]}  d2 {[%clk 0:00:06]} 63. Re8+ {[%clk 0:00:13]}  Kg7 {[%clk 0:00:06]} 64. Re7+ {[%clk 0:00:13]}  Kf8 {[%clk 0:00:07]} 65. g7+ {[%clk 0:00:13]}  Kg8 {[%clk 0:00:07]} 66. f6 {[%clk 0:00:13]}  Rd8 {[%clk 0:00:06]} 67. f7+ {[%clk 0:00:13]}  Kxg7 {[%clk 0:00:06]} 68. Re8 {[%clk 0:00:14]}  Rd4+ {[%clk 0:00:05]} 0-1


[Site "https://www.chess.com"]

[Event "Titled Tuesday Blitz November 30 2021"]
[White "Shahade, Gregory"]
[Black "Lazavik, Denis"]
[WhiteFideId "2009064"]
[BlackFideId "13515110"]
[WhiteElo "2635"]
[BlackElo "2436"]
[Result "1-0"]
[Round "05"]
[TimeControl "180+1"]
[Date "2021.11.30"]
[WhiteClock "0:00:06"]
[BlackClock "0:00:03"]

1. e4 {[%clk 0:03:00]}  c5 {[%clk 0:02:59]} 2. Nf3 {[%clk 0:03:00]}  e6 {[%clk 0:02:59]} 3. d4 {[%clk 0:03:01]}  cxd4 {[%clk 0:03:00]} 4. Nxd4 {[%clk 0:03:02]}  Nc6 {[%clk 0:03:01]} 5. Nc3 {[%clk 0:03:02]}  Qc7 {[%clk 0:03:01]} 6. Be3 {[%clk 0:03:01]}  a6 {[%clk 0:03:00]} 7. Qf3 {[%clk 0:03:01]}  Ne5 {[%clk 0:02:50]} 8. Qg3 {[%clk 0:02:59]}  b5 {[%clk 0:02:50]} 9. O-O-O {[%clk 0:02:54]}  Nf6 {[%clk 0:02:49]} 10. a3 {[%clk 0:02:43]}  Bb7 {[%clk 0:02:47]} 11. f3 {[%clk 0:02:43]}  Bxa3 {[%clk 0:02:04]} 12. Ndxb5 {[%clk 0:02:24]}  axb5 {[%clk 0:01:49]} 13. Nxb5 {[%clk 0:02:25]}  Qb8 {[%clk 0:01:32]} 14. bxa3 {[%clk 0:01:44]}  O-O {[%clk 0:01:10]} 15. Bc5 {[%clk 0:01:20]}  Ng6 {[%clk 0:00:40]} 16. Bd6 {[%clk 0:01:00]}  Qc8 {[%clk 0:00:29]} 17. Bxf8 {[%clk 0:00:59]}  Qxf8 {[%clk 0:00:30]} 18. Qd6 {[%clk 0:00:57]}  Qc8 {[%clk 0:00:30]} 19. Qc7 {[%clk 0:00:57]}  Qxc7 {[%clk 0:00:28]} 20. Nxc7 {[%clk 0:00:57]}  Rxa3 {[%clk 0:00:29]} 21. Kb2 {[%clk 0:00:57]}  Ra5 {[%clk 0:00:28]} 22. Nb5 {[%clk 0:00:43]}  Bc6 {[%clk 0:00:22]} 23. c4 {[%clk 0:00:36]}  d5 {[%clk 0:00:14]} 24. exd5 {[%clk 0:00:36]}  exd5 {[%clk 0:00:14]} 25. Ra1 {[%clk 0:00:33]}  Rxa1 {[%clk 0:00:14]} 26. Kxa1 {[%clk 0:00:34]}  dxc4 {[%clk 0:00:14]} 27. Bxc4 {[%clk 0:00:34]}  Ne5 {[%clk 0:00:13]} 28. Be2 {[%clk 0:00:27]}  g6 {[%clk 0:00:11]} 29. Rc1 {[%clk 0:00:27]}  Kg7 {[%clk 0:00:07]} 30. f4 {[%clk 0:00:25]}  Bxb5 {[%clk 0:00:07]} 31. Bxb5 {[%clk 0:00:23]}  Neg4 {[%clk 0:00:08]} 32. Rc7 {[%clk 0:00:17]}  Nd5 {[%clk 0:00:06]} 33. Rd7 {[%clk 0:00:14]}  Nxf4 {[%clk 0:00:07]} 34. Rd4 {[%clk 0:00:10]}  Nxg2 {[%clk 0:00:03]} 35. Rxg4 {[%clk 0:00:10]}  Ne3 {[%clk 0:00:04]} 36. Re4 {[%clk 0:00:09]}  Nf5 {[%clk 0:00:04]} 37. Bd3 {[%clk 0:00:07]}  Kf6 {[%clk 0:00:03]} 38. Rf4 {[%clk 0:00:08]}  Ke5 {[%clk 0:00:04]} 39. Rf1 {[%clk 0:00:08]}  Nd6 {[%clk 0:00:05]} 40. Re1+ {[%clk 0:00:08]}  Kd4 {[%clk 0:00:04]} 41. Rd1 {[%clk 0:00:08]}  Ke5 {[%clk 0:00:05]} 42. Re1+ {[%clk 0:00:08]}  Kd4 {[%clk 0:00:05]} 43. Rd1 {[%clk 0:00:09]}  Ke5 {[%clk 0:00:05]} 44. Kb1 {[%clk 0:00:09]}  f5 {[%clk 0:00:06]} 45. Re1+ {[%clk 0:00:09]}  Kd4 {[%clk 0:00:06]} 46. Bc2 {[%clk 0:00:10]}  Kd5 {[%clk 0:00:03]} 47. Re7 {[%clk 0:00:10]}  h6 {[%clk 0:00:02]} 48. Rh7 {[%clk 0:00:10]}  g5 {[%clk 0:00:02]} 49. Rxh6 {[%clk 0:00:10]}  Ke5 {[%clk 0:00:03]} 50. Rh8 {[%clk 0:00:09]}  Nb5 {[%clk 0:00:03]} 51. Rc8 {[%clk 0:00:06]}  Nd4 {[%clk 0:00:03]} 52. Rc5+ {[%clk 0:00:06]}  Kf4 {[%clk 0:00:03]} 53. Kb2 {[%clk 0:00:06]}  g4 {[%clk 0:00:03]} 54. Kc3 {[%clk 0:00:06]}  Ne2+ {[%clk 0:00:03]} 55. Kd2 {[%clk 0:00:06]}  Nd4 {[%clk 0:00:03]} 56. Rc4 {[%clk 0:00:06]}  Ke5 {[%clk 0:00:03]} 57. Rc5+ {[%clk 0:00:06]}  Kf4 {[%clk 0:00:03]} 58. Bd1 {[%clk 0:00:06]}  Ke4 {[%clk 0:00:03]} 59. Ra5 {[%clk 0:00:05]}  Kf4 {[%clk 0:00:03]} 60. Ra4 {[%clk 0:00:05]}  Ke5 {[%clk 0:00:03]} 61. Kd3 {[%clk 0:00:05]}  Ne6 {[%clk 0:00:03]} 62. Ra5+ {[%clk 0:00:05]}  Kf4 {[%clk 0:00:03]} 63. Ke2 {[%clk 0:00:06]}  Nd4+ {[%clk 0:00:04]} 64. Kf2 {[%clk 0:00:06]}  Nc6 {[%clk 0:00:03]} 65. Rc5 {[%clk 0:00:05]}  Nd4 {[%clk 0:00:03]} 66. Bc2 {[%clk 0:00:05]}  Kg5 {[%clk 0:00:03]} 67. Bd3 {[%clk 0:00:05]}  Kf4 {[%clk 0:00:03]} 68. Rd5 {[%clk 0:00:06]} 1-0


[Site "https://www.chess.com"]

[Event "Titled Tuesday Blitz November 30 2021"]
[White "Shipov, Sergei"]
[Black "Kamsky, Gata"]
[WhiteFideId "4113624"]
[BlackFideId "2000024"]
[WhiteElo "2760"]
[BlackElo "2645"]
[Result "0-1"]
[Round "05"]
[TimeControl "180+1"]
[Date "2021.11.30"]
[WhiteClock "0:00:20"]
[BlackClock "0:01:24"]

1. d4 {[%clk 0:02:59]}  d5 {[%clk 0:02:59]} 2. c4 {[%clk 0:02:59]}  c6 {[%clk 0:02:58]} 3. Nc3 {[%clk 0:02:58]}  Nf6 {[%clk 0:02:59]} 4. Nf3 {[%clk 0:02:58]}  a6 {[%clk 0:02:59]} 5. h3 {[%clk 0:02:58]}  Bf5 {[%clk 0:02:54]} 6. g4 {[%clk 0:02:51]}  Be4 {[%clk 0:02:53]} 7. Bg2 {[%clk 0:02:49]}  e6 {[%clk 0:02:47]} 8. g5 {[%clk 0:02:48]}  Ng8 {[%clk 0:02:34]} 9. Nxe4 {[%clk 0:02:09]}  dxe4 {[%clk 0:02:34]} 10. Nh2 {[%clk 0:02:07]}  Bb4+ {[%clk 0:02:18]} 11. Kf1 {[%clk 0:02:05]}  f5 {[%clk 0:02:16]} 12. gxf6 {[%clk 0:01:58]}  Nxf6 {[%clk 0:02:15]} 13. Ng4 {[%clk 0:01:58]}  O-O {[%clk 0:02:14]} 14. Bg5 {[%clk 0:01:58]}  Nxg4 {[%clk 0:02:09]} 15. Bxd8 {[%clk 0:01:32]}  Ne3+ {[%clk 0:02:08]} 16. Kg1 {[%clk 0:01:31]}  Nxd1 {[%clk 0:02:08]} 17. Bh4 {[%clk 0:01:22]}  Nxb2 {[%clk 0:02:03]} 18. Rb1 {[%clk 0:01:16]}  Bc3 {[%clk 0:02:02]} 19. e3 {[%clk 0:01:17]}  b5 {[%clk 0:01:57]} 20. c5 {[%clk 0:01:14]}  Nc4 {[%clk 0:01:55]} 21. Kh2 {[%clk 0:01:05]}  Nd2 {[%clk 0:01:55]} 22. Rbc1 {[%clk 0:01:03]}  Ba5 {[%clk 0:01:55]} 23. Rhd1 {[%clk 0:00:52]}  Nd7 {[%clk 0:01:54]} 24. Rxd2 {[%clk 0:00:49]}  Bxd2 {[%clk 0:01:53]} 25. Rc2 {[%clk 0:00:49]}  Ba5 {[%clk 0:01:45]} 26. Bxe4 {[%clk 0:00:50]}  Rac8 {[%clk 0:01:45]} 27. f4 {[%clk 0:00:44]}  Bd8 {[%clk 0:01:43]} 28. Be1 {[%clk 0:00:43]}  Nf6 {[%clk 0:01:43]} 29. Bf3 {[%clk 0:00:43]}  Nd5 {[%clk 0:01:43]} 30. Bd2 {[%clk 0:00:43]}  g5 {[%clk 0:01:42]} 31. Bg4 {[%clk 0:00:44]}  Kf7 {[%clk 0:01:39]} 32. f5 {[%clk 0:00:43]}  e5 {[%clk 0:01:35]} 33. e4 {[%clk 0:00:41]}  Nf6 {[%clk 0:01:34]} 34. dxe5 {[%clk 0:00:39]}  Bc7 {[%clk 0:01:34]} 35. Bxg5 {[%clk 0:00:36]}  Bxe5+ {[%clk 0:01:33]} 36. Kh1 {[%clk 0:00:36]}  Rcd8 {[%clk 0:01:32]} 37. Bf3 {[%clk 0:00:31]}  Rd3 {[%clk 0:01:32]} 38. Rf2 {[%clk 0:00:31]}  Rg8 {[%clk 0:01:31]} 39. h4 {[%clk 0:00:32]}  a5 {[%clk 0:01:28]} 40. Rf1 {[%clk 0:00:25]}  b4 {[%clk 0:01:28]} 41. Bd1 {[%clk 0:00:25]}  Rh3+ {[%clk 0:01:28]} 42. Kg2 {[%clk 0:00:24]}  Rxh4 {[%clk 0:01:28]} 43. Bb3+ {[%clk 0:00:24]}  Kf8 {[%clk 0:01:28]} 44. Bxg8 {[%clk 0:00:24]}  Rg4+ {[%clk 0:01:28]} 45. Kf3 {[%clk 0:00:24]}  Rxg5 {[%clk 0:01:28]} 46. Bb3 {[%clk 0:00:24]}  Rg3+ {[%clk 0:01:27]} 47. Ke2 {[%clk 0:00:23]}  Nxe4 {[%clk 0:01:27]} 48. f6 {[%clk 0:00:23]}  a4 {[%clk 0:01:26]} 49. Bc2 {[%clk 0:00:20]}  Rg2+ {[%clk 0:01:24]} 50. Kd3 {[%clk 0:00:20]}  Nxc5+ {[%clk 0:01:24]} 0-1


[Site "https://www.chess.com"]

[Event "Titled Tuesday Blitz November 30 2021"]
[White "Stribuk, Artiom"]
[Black "Pranav, V"]
[WhiteFideId "13515659"]
[BlackFideId "25060783"]
[WhiteElo "2224"]
[BlackElo "2351"]
[Result "1-0"]
[Round "05"]
[TimeControl "180+1"]
[Date "2021.11.30"]
[WhiteClock "0:00:02"]
[BlackClock "0:00:02"]

1. d4 {[%clk 0:03:00]}  Nf6 {[%clk 0:02:59]} 2. c4 {[%clk 0:03:00]}  e6 {[%clk 0:02:59]} 3. g3 {[%clk 0:03:00]}  Bb4+ {[%clk 0:02:55]} 4. Bd2 {[%clk 0:02:59]}  Bxd2+ {[%clk 0:02:51]} 5. Qxd2 {[%clk 0:02:58]}  O-O {[%clk 0:02:51]} 6. Bg2 {[%clk 0:02:58]}  d6 {[%clk 0:02:52]} 7. Nf3 {[%clk 0:02:56]}  Nc6 {[%clk 0:02:52]} 8. Nc3 {[%clk 0:02:54]}  Qe7 {[%clk 0:02:51]} 9. O-O {[%clk 0:02:54]}  e5 {[%clk 0:02:50]} 10. Nd5 {[%clk 0:02:27]}  Nxd5 {[%clk 0:02:48]} 11. cxd5 {[%clk 0:02:28]}  Nxd4 {[%clk 0:02:48]} 12. Nxd4 {[%clk 0:02:28]}  exd4 {[%clk 0:02:49]} 13. Rac1 {[%clk 0:02:26]}  Bf5 {[%clk 0:02:14]} 14. Rfe1 {[%clk 0:02:22]}  Qf6 {[%clk 0:01:52]} 15. Rxc7 {[%clk 0:02:19]}  Rfe8 {[%clk 0:01:49]} 16. Bf3 {[%clk 0:01:52]}  Bg6 {[%clk 0:01:36]} 17. Kg2 {[%clk 0:01:34]}  h5 {[%clk 0:01:22]} 18. h4 {[%clk 0:01:17]}  b6 {[%clk 0:01:15]} 19. Rc4 {[%clk 0:01:12]}  d3 {[%clk 0:01:14]} 20. e4 {[%clk 0:01:09]}  Rac8 {[%clk 0:01:12]} 21. Rec1 {[%clk 0:00:59]}  Rxc4 {[%clk 0:01:11]} 22. Rxc4 {[%clk 0:01:00]}  b5 {[%clk 0:01:12]} 23. Rc6 {[%clk 0:00:49]}  Rxe4 {[%clk 0:01:10]} 24. Qxd3 {[%clk 0:00:24]}  Rd4 {[%clk 0:00:57]} 25. Qe3 {[%clk 0:00:18]}  Rd3 {[%clk 0:00:49]} 26. Qf4 {[%clk 0:00:14]}  Qxf4 {[%clk 0:00:29]} 27. gxf4 {[%clk 0:00:15]}  Bf5 {[%clk 0:00:30]} 28. Rxd6 {[%clk 0:00:13]}  g6 {[%clk 0:00:30]} 29. Ra6 {[%clk 0:00:11]}  Rd2 {[%clk 0:00:30]} 30. b3 {[%clk 0:00:08]}  Kg7 {[%clk 0:00:25]} 31. Rxa7 {[%clk 0:00:08]}  b4 {[%clk 0:00:25]} 32. Ra4 {[%clk 0:00:08]}  Bd7 {[%clk 0:00:16]} 33. Rxb4 {[%clk 0:00:08]}  Rxa2 {[%clk 0:00:16]} 34. Rb7 {[%clk 0:00:08]}  Bf5 {[%clk 0:00:17]} 35. b4 {[%clk 0:00:07]}  Ra4 {[%clk 0:00:13]} 36. d6 {[%clk 0:00:05]}  Kf8 {[%clk 0:00:06]} 37. Bd5 {[%clk 0:00:04]}  Ra6 {[%clk 0:00:06]} 38. Rxf7+ {[%clk 0:00:03]}  Ke8 {[%clk 0:00:06]} 39. Re7+ {[%clk 0:00:04]}  Kd8 {[%clk 0:00:07]} 40. Re5 {[%clk 0:00:03]}  Rxd6 {[%clk 0:00:07]} 41. Be4 {[%clk 0:00:04]}  Be6 {[%clk 0:00:05]} 42. Kg3 {[%clk 0:00:03]}  Bf7 {[%clk 0:00:04]} 43. b5 {[%clk 0:00:03]}  Rd1 {[%clk 0:00:03]} 44. b6 {[%clk 0:00:02]}  Rg1+ {[%clk 0:00:04]} 45. Kf3 {[%clk 0:00:02]}  Ra1 {[%clk 0:00:01]} 46. b7 {[%clk 0:00:02]}  Kc7 {[%clk 0:00:02]} 47. Re7+ {[%clk 0:00:02]} 1-0


[Site "https://www.chess.com"]

[Event "Titled Tuesday Blitz November 30 2021"]
[White "Zhigalko, Sergei"]
[Black "Costachi, Mihnea"]
[WhiteFideId "13502956"]
[BlackFideId "1217518"]
[WhiteElo "2662"]
[BlackElo "2482"]
[Result "1-0"]
[Round "05"]
[TimeControl "180+1"]
[Date "2021.11.30"]
[WhiteClock "0:01:20"]
[BlackClock "0:00:08"]

1. e4 {[%clk 0:03:00]}  e5 {[%clk 0:02:59]} 2. Nf3 {[%clk 0:03:00]}  Nf6 {[%clk 0:02:55]} 3. d4 {[%clk 0:02:57]}  Nxe4 {[%clk 0:02:54]} 4. Bd3 {[%clk 0:02:57]}  d5 {[%clk 0:02:54]} 5. Nxe5 {[%clk 0:02:57]}  Nd7 {[%clk 0:02:53]} 6. Nxd7 {[%clk 0:02:57]}  Bxd7 {[%clk 0:02:53]} 7. O-O {[%clk 0:02:58]}  Bd6 {[%clk 0:02:54]} 8. Nc3 {[%clk 0:02:59]}  Nxc3 {[%clk 0:02:42]} 9. bxc3 {[%clk 0:02:59]}  O-O {[%clk 0:02:43]} 10. Qh5 {[%clk 0:02:58]}  f5 {[%clk 0:02:36]} 11. Re1 {[%clk 0:02:56]}  Qf6 {[%clk 0:02:32]} 12. Qf3 {[%clk 0:02:56]}  c6 {[%clk 0:02:30]} 13. Bf4 {[%clk 0:02:55]}  Rae8 {[%clk 0:02:27]} 14. h4 {[%clk 0:02:55]}  Rxe1+ {[%clk 0:02:25]} 15. Rxe1 {[%clk 0:02:55]}  g6 {[%clk 0:02:13]} 16. Qg3 {[%clk 0:02:28]}  Bxf4 {[%clk 0:02:10]} 17. Qxf4 {[%clk 0:02:29]}  Re8 {[%clk 0:02:10]} 18. Rxe8+ {[%clk 0:02:29]}  Bxe8 {[%clk 0:02:11]} 19. Qb8 {[%clk 0:02:28]}  Qe7 {[%clk 0:02:01]} 20. Qxa7 {[%clk 0:02:21]}  Qe1+ {[%clk 0:01:51]} 21. Bf1 {[%clk 0:02:21]}  Qxc3 {[%clk 0:01:49]} 22. Qxb7 {[%clk 0:01:42]}  Qxd4 {[%clk 0:01:47]} 23. Qa8 {[%clk 0:01:41]}  Kf7 {[%clk 0:01:38]} 24. a4 {[%clk 0:01:42]}  c5 {[%clk 0:00:30]} 25. a5 {[%clk 0:01:41]}  Qa4 {[%clk 0:00:30]} 26. Qxd5+ {[%clk 0:01:36]}  Kg7 {[%clk 0:00:27]} 27. Qxc5 {[%clk 0:01:33]}  Bc6 {[%clk 0:00:22]} 28. a6 {[%clk 0:01:29]}  Kh6 {[%clk 0:00:17]} 29. Qc4 {[%clk 0:01:20]}  Qxc4 {[%clk 0:00:12]} 30. Bxc4 {[%clk 0:01:21]}  Kg7 {[%clk 0:00:12]} 31. Be2 {[%clk 0:01:21]}  Bb5 {[%clk 0:00:08]} 32. Bxb5 {[%clk 0:01:20]} 1-0


[Site "https://www.chess.com"]